[Event "Late-Titled-Tuesday-Blitz-April-23-2024"]
[Site "Chess.com"]
[Date "2024.04.23"]
[Round "5"]
[White "NMJeevanK"]
[Black "Vladimir_Zakhartsov"]
[Result "0-1"]
[WhiteElo "2663"]
[BlackElo "2918"]
[TimeControl "180+1"]
[EndTime "14:57:27 PDT"]
[Termination "Vladimir_Zakhartsov won by resignation"]

1. e4 {[%clk 0:03:00.9]} 1... c5 {[%clk 0:02:57]} 2. Nf3 {[%clk 0:02:59.7]} 2...
d6 {[%clk 0:02:56.7]} 3. Bc4 {[%clk 0:02:57.9]} 3... Nf6 {[%clk 0:02:56.6]} 4.
d3 {[%clk 0:02:58]} 4... Nc6 {[%clk 0:02:55.5]} 5. O-O {[%clk 0:02:57.5]} 5...
Bg4 {[%clk 0:02:54.5]} 6. h3 {[%clk 0:02:51.6]} 6... Bh5 {[%clk 0:02:50.8]} 7.
c3 {[%clk 0:02:43.8]} 7... e6 {[%clk 0:02:49.9]} 8. g4 {[%clk 0:02:19.8]} 8...
Bg6 {[%clk 0:02:28.5]} 9. Re1 {[%clk 0:02:09]} 9... Be7 {[%clk 0:02:26.4]} 10.
Nh4 {[%clk 0:01:57.4]} 10... Nd7 {[%clk 0:02:22.5]} 11. Ng2 {[%clk 0:01:54.4]}
11... h5 {[%clk 0:02:21.5]} 12. f4 {[%clk 0:01:54.1]} 12... hxg4 {[%clk
0:02:12.1]} 13. hxg4 {[%clk 0:01:55]} 13... Nb6 {[%clk 0:02:05.8]} 14. f5 {[%clk
0:01:51.3]} 14... Nxc4 {[%clk 0:02:01.9]} 15. dxc4 {[%clk 0:01:44]} 15... Bh7
{[%clk 0:02:01.5]} 16. Bf4 {[%clk 0:01:38.2]} 16... Qb6 {[%clk 0:01:57.2]} 17.
Na3 {[%clk 0:01:32.9]} 17... O-O-O {[%clk 0:01:54]} 18. Nb5 {[%clk 0:01:22.2]}
18... a6 {[%clk 0:01:53.9]} 19. Nxd6+ {[%clk 0:01:20.3]} 19... Bxd6 {[%clk
0:01:53.7]} 20. Bxd6 {[%clk 0:01:21.2]} 20... e5 {[%clk 0:01:21.6]} 21. Qd5
{[%clk 0:01:17.1]} 21... Rxd6 {[%clk 0:01:06.3]} 22. Qxd6 {[%clk 0:01:07.6]}
22... Rd8 {[%clk 0:01:06.4]} 23. Qd5 {[%clk 0:00:56.5]} 23... Rxd5 {[%clk
0:00:50.5]} 24. exd5 {[%clk 0:00:57.4]} 24... Nd8 {[%clk 0:00:34.3]} 25. b3
{[%clk 0:00:57.5]} 25... f6 {[%clk 0:00:32.7]} 26. Kf2 {[%clk 0:00:57.9]} 26...
g6 {[%clk 0:00:31.5]} 27. Rh1 {[%clk 0:00:57]} 27... Qc7 {[%clk 0:00:31.7]} 28.
Ne3 {[%clk 0:00:55.4]} 28... Qg7 {[%clk 0:00:30.9]} 29. Rag1 {[%clk 0:00:54.1]}
29... Nf7 {[%clk 0:00:30.4]} 30. Rh2 {[%clk 0:00:45]} 30... Ng5 {[%clk
0:00:29.4]} 31. Rgh1 {[%clk 0:00:45.6]} 31... gxf5 {[%clk 0:00:28.6]} 32. gxf5
{[%clk 0:00:43.4]} 32... Qd7 {[%clk 0:00:25.3]} 33. d6 {[%clk 0:00:29.6]} 33...
Qxd6 {[%clk 0:00:22.7]} 34. Nd5 {[%clk 0:00:26]} 34... Bxf5 {[%clk 0:00:14.5]}
35. Rh8+ {[%clk 0:00:24.9]} 35... Kd7 {[%clk 0:00:15]} 36. Rd1 {[%clk
0:00:17.2]} 36... Kc6 {[%clk 0:00:09.8]} 37. Nb4+ {[%clk 0:00:14.2]} 37... cxb4
{[%clk 0:00:09.2]} 38. Rxd6+ {[%clk 0:00:15.1]} 38... Kxd6 {[%clk 0:00:09.7]}
39. cxb4 {[%clk 0:00:16]} 39... Bd7 {[%clk 0:00:08.5]} 40. Ke3 {[%clk
0:00:14.8]} 40... f5 {[%clk 0:00:08.6]} 41. Rh5 {[%clk 0:00:13.5]} 41... f4+
{[%clk 0:00:08.4]} 42. Kd3 {[%clk 0:00:13.9]} 42... Nf3 {[%clk 0:00:04.7]} 43.
Rh6+ {[%clk 0:00:13.2]} 43... Ke7 {[%clk 0:00:04.5]} 44. Ke4 {[%clk 0:00:12.5]}
44... Nd2+ {[%clk 0:00:04.8]} 45. Kxe5 {[%clk 0:00:12.5]} 45... f3 {[%clk
0:00:04.6]} 46. Rh7+ {[%clk 0:00:12.1]} 46... Kd8 {[%clk 0:00:04.4]} 47. Kd6
{[%clk 0:00:12]} 47... Be8 {[%clk 0:00:03.9]} 48. Rh2 {[%clk 0:00:10.5]} 48...
f2 {[%clk 0:00:04.3]} 49. Rxf2 {[%clk 0:00:09.6]} 49... Ne4+ {[%clk 0:00:04.6]}
50. Kd5 {[%clk 0:00:10.2]} 50... Nxf2 {[%clk 0:00:05.4]} 51. Kc5 {[%clk
0:00:10.3]} 51... Kc7 {[%clk 0:00:06]} 52. a4 {[%clk 0:00:10.7]} 52... Nd3+
{[%clk 0:00:06.2]} 53. Kd4 {[%clk 0:00:10.9]} 53... Nxb4 {[%clk 0:00:06.9]} 54.
Kc3 {[%clk 0:00:11.4]} 54... a5 {[%clk 0:00:07]} 55. Kd4 {[%clk 0:00:11.6]}
55... Kc6 {[%clk 0:00:07.4]} 56. Kc3 {[%clk 0:00:11.5]} 56... Kc5 {[%clk
0:00:07.8]} 57. Kb2 {[%clk 0:00:12.4]} 57... Bf7 {[%clk 0:00:07.8]} 58. Ka3
{[%clk 0:00:13.3]} 58... Bxc4 {[%clk 0:00:07.7]} 59. bxc4 {[%clk 0:00:13.7]}
59... Kxc4 {[%clk 0:00:08.5]} 60. Kb2 {[%clk 0:00:14.6]} 60... Na6 {[%clk
0:00:09.1]} 61. Ka2 {[%clk 0:00:15.5]} 61... Nc5 {[%clk 0:00:09.8]} 62. Ka1
{[%clk 0:00:16.3]} 62... Kb3 {[%clk 0:00:09.9]} 63. Kb1 {[%clk 0:00:17.2]} 63...
Kxa4 {[%clk 0:00:09.7]} 64. Ka2 {[%clk 0:00:18.1]} 64... Kb4 {[%clk 0:00:10.2]}
65. Ka1 {[%clk 0:00:19]} 65... a4 {[%clk 0:00:10.8]} 66. Ka2 {[%clk 0:00:19.9]}
66... a3 {[%clk 0:00:11.4]} 67. Kb1 {[%clk 0:00:20.7]} 67... Kb3 {[%clk
0:00:11.9]} 68. Ka1 {[%clk 0:00:21.6]} 68... Na6 {[%clk 0:00:12.2]} 69. Kb1
{[%clk 0:00:22]} 69... Nb4 {[%clk 0:00:12.9]} 70. Ka1 {[%clk 0:00:22.9]} 70...
Nc2+ {[%clk 0:00:12.6]} 71. Kb1 {[%clk 0:00:23.8]} 71... a2+ {[%clk 0:00:13.2]}
0-1

[Event "Late-Titled-Tuesday-Blitz-April-23-2024"]
[Site "Chess.com"]
[Date "2024.04.23"]
[Round "5"]
[White "DeTimmerman"]
[Black "Orest_Vovk"]
[Result "1-0"]
[WhiteElo "2752"]
[BlackElo "2564"]
[TimeControl "180+1"]
[EndTime "14:57:30 PDT"]
[Termination "DeTimmerman won by resignation"]

1. b4 {[%clk 0:03:00.3]} 1... Nf6 {[%clk 0:02:43.7]} 2. Bb2 {[%clk 0:03:00.6]}
2... Rg8 {[%clk 0:02:42.2]} 3. b5 {[%clk 0:02:59.8]} 3... a6 {[%clk 0:02:39.5]}
4. a4 {[%clk 0:03:00.1]} 4... axb5 {[%clk 0:02:39.5]} 5. axb5 {[%clk 0:03:01]}
5... Rxa1 {[%clk 0:02:39.7]} 6. Bxa1 {[%clk 0:03:01.9]} 6... e6 {[%clk 0:02:34]}
7. c4 {[%clk 0:03:02.2]} 7... d5 {[%clk 0:02:32.6]} 8. e3 {[%clk 0:03:02.5]}
8... b6 {[%clk 0:02:13.5]} 9. Nf3 {[%clk 0:03:01.9]} 9... Bb7 {[%clk 0:02:12.9]}
10. Be2 {[%clk 0:03:02.2]} 10... dxc4 {[%clk 0:02:09.1]} 11. Bxc4 {[%clk
0:03:01.8]} 11... g5 {[%clk 0:02:05.1]} 12. O-O {[%clk 0:03:00.4]} 12... Nbd7
{[%clk 0:01:56.6]} 13. Nc3 {[%clk 0:02:28.4]} 13... g4 {[%clk 0:01:53.1]} 14.
Ne1 {[%clk 0:02:27.5]} 14... Ne5 {[%clk 0:01:45.3]} 15. Be2 {[%clk 0:02:25.4]}
15... Qa8 {[%clk 0:01:22]} 16. Qa4 {[%clk 0:02:11.7]} 16... Nf3+ {[%clk
0:01:04.7]} 17. Bxf3 {[%clk 0:02:07.2]} 17... gxf3 {[%clk 0:00:56.2]} 18. Qxa8+
{[%clk 0:02:04.9]} 18... Bxa8 {[%clk 0:00:57.1]} 19. g3 {[%clk 0:02:05.2]} 19...
Ne4 {[%clk 0:00:43]} 20. Nxe4 {[%clk 0:02:02.1]} 20... Bxe4 {[%clk 0:00:42]} 21.
d3 {[%clk 0:02:02.9]} 21... Bb7 {[%clk 0:00:39.1]} 22. e4 {[%clk 0:02:02.2]}
22... Rg5 {[%clk 0:00:36.6]} 23. Nxf3 {[%clk 0:01:53.3]} 23... Rxb5 {[%clk
0:00:36]} 24. Be5 {[%clk 0:01:50.8]} 24... Bd6 {[%clk 0:00:32.3]} 25. Bxd6
{[%clk 0:01:47.1]} 25... cxd6 {[%clk 0:00:33.2]} 26. Rc1 {[%clk 0:01:47.3]}
26... Kd7 {[%clk 0:00:30.6]} 27. Nd4 {[%clk 0:01:37.6]} 27... Rb4 {[%clk
0:00:25.1]} 28. Ne2 {[%clk 0:01:27]} 28... Ba6 {[%clk 0:00:18.2]} 29. Rc3 {[%clk
0:01:21.9]} 29... Rb1+ {[%clk 0:00:16.8]} 30. Kg2 {[%clk 0:01:22.2]} 30... b5
{[%clk 0:00:16.9]} 31. Ra3 {[%clk 0:01:20.1]} 31... Bb7 {[%clk 0:00:16.2]} 32.
Kf3 {[%clk 0:01:13.7]} 32... b4 {[%clk 0:00:16.2]} 33. Ra7 {[%clk 0:00:45.8]}
33... Kc7 {[%clk 0:00:15.8]} 34. Ke3 {[%clk 0:00:36.1]} 34... e5 {[%clk
0:00:15.2]} 35. Kd2 {[%clk 0:00:32.2]} 35... Rb2+ {[%clk 0:00:14.4]} 36. Ke3
{[%clk 0:00:28.2]} 36... Kb6 {[%clk 0:00:13.8]} 37. Ra1 {[%clk 0:00:25.7]} 37...
Bc6 {[%clk 0:00:10.9]} 38. f4 {[%clk 0:00:24.4]} 38... f6 {[%clk 0:00:10.8]} 39.
Rc1 {[%clk 0:00:17.7]} 39... Bb5 {[%clk 0:00:09.8]} 40. g4 {[%clk 0:00:16.3]}
40... Rb3 {[%clk 0:00:08.8]} 41. Rd1 {[%clk 0:00:17]} 41... Ra3 {[%clk
0:00:08.5]} 42. f5 {[%clk 0:00:15.8]} 42... h6 {[%clk 0:00:07.4]} 43. h4 {[%clk
0:00:15.7]} 43... b3 {[%clk 0:00:07.7]} 44. Nc3 {[%clk 0:00:14]} 44... b2 {[%clk
0:00:04.6]} 45. Kd2 {[%clk 0:00:14.7]} 45... Ra1 {[%clk 0:00:03.9]} 46. Nb1
{[%clk 0:00:15.2]} 46... Ba4 {[%clk 0:00:03.1]} 47. Re1 {[%clk 0:00:14.7]} 47...
Bb3 {[%clk 0:00:03]} 48. Kc3 {[%clk 0:00:14.8]} 48... Ba2 {[%clk 0:00:03.2]} 49.
Kxb2 {[%clk 0:00:14.6]} 49... Rxb1+ {[%clk 0:00:03.1]} 50. Rxb1 {[%clk
0:00:15.5]} 50... Bxb1 {[%clk 0:00:03.9]} 51. Kxb1 {[%clk 0:00:16.3]} 51... Kc5
{[%clk 0:00:03.8]} 52. Kc2 {[%clk 0:00:16.2]} 52... d5 {[%clk 0:00:04.1]} 53.
Kd2 {[%clk 0:00:14.3]} 53... Kd4 {[%clk 0:00:03.8]} 54. g5 {[%clk 0:00:13.7]}
54... fxg5 {[%clk 0:00:02.7]} 55. hxg5 {[%clk 0:00:14.6]} 55... hxg5 {[%clk
0:00:03.2]} 56. f6 {[%clk 0:00:15.1]} 56... dxe4 {[%clk 0:00:04.1]} 57. dxe4
{[%clk 0:00:15.2]} 57... Kxe4 {[%clk 0:00:04.2]} 58. f7 {[%clk 0:00:15.4]} 1-0

[Event "Late-Titled-Tuesday-Blitz-April-23-2024"]
[Site "Chess.com"]
[Date "2024.04.23"]
[Round "5"]
[White "rhungaski"]
[Black "profedechess93"]
[Result "1-0"]
[WhiteElo "2497"]
[BlackElo "2665"]
[TimeControl "180+1"]
[EndTime "14:57:36 PDT"]
[Termination "rhungaski won on time"]

1. e4 {[%clk 0:03:00.9]} 1... e6 {[%clk 0:03:00.2]} 2. d4 {[%clk 0:03:00.7]}
2... d5 {[%clk 0:03:00.9]} 3. Nc3 {[%clk 0:03:01.1]} 3... Nf6 {[%clk 0:03:00.7]}
4. e5 {[%clk 0:03:01]} 4... Nfd7 {[%clk 0:03:01.2]} 5. Nce2 {[%clk 0:03:01.3]}
5... c5 {[%clk 0:03:01.7]} 6. c3 {[%clk 0:03:01.3]} 6... Nc6 {[%clk 0:03:02.3]}
7. Nf3 {[%clk 0:03:01.3]} 7... b5 {[%clk 0:03:00.5]} 8. h4 {[%clk 0:02:57.3]}
8... Qb6 {[%clk 0:02:58.7]} 9. a3 {[%clk 0:02:40.2]} 9... a5 {[%clk 0:02:46.1]}
10. Nf4 {[%clk 0:02:37.9]} 10... Rb8 {[%clk 0:02:39.3]} 11. Be3 {[%clk
0:02:13.9]} 11... b4 {[%clk 0:02:35.2]} 12. axb4 {[%clk 0:02:13.3]} 12... axb4
{[%clk 0:02:35.2]} 13. Bd3 {[%clk 0:02:07.7]} 13... bxc3 {[%clk 0:02:20.8]} 14.
bxc3 {[%clk 0:02:08.6]} 14... cxd4 {[%clk 0:02:21.4]} 15. cxd4 {[%clk
0:02:08.9]} 15... Bb4+ {[%clk 0:02:20.8]} 16. Kf1 {[%clk 0:02:08.7]} 16... Bc3
{[%clk 0:01:58.8]} 17. Rc1 {[%clk 0:02:05.2]} 17... Qa5 {[%clk 0:01:38.9]} 18.
Qc2 {[%clk 0:01:57.1]} 18... Bb2 {[%clk 0:01:38.2]} 19. Qxc6 {[%clk 0:01:40.7]}
19... Bxc1 {[%clk 0:01:37.6]} 20. Qxc1 {[%clk 0:01:33.3]} 20... Ba6 {[%clk
0:01:33.1]} 21. Bxa6 {[%clk 0:01:26]} 21... Qxa6+ {[%clk 0:01:34]} 22. Kg1
{[%clk 0:01:25.8]} 22... O-O {[%clk 0:01:07.5]} 23. Kh2 {[%clk 0:01:21.5]} 23...
Rfc8 {[%clk 0:01:06.3]} 24. Qd2 {[%clk 0:01:20.5]} 24... Qa4 {[%clk 0:00:48.7]}
25. Ng5 {[%clk 0:01:17.8]} 25... Qc2 {[%clk 0:00:42.2]} 26. Qxc2 {[%clk
0:01:09]} 26... Rxc2 {[%clk 0:00:43.1]} 27. Ra1 {[%clk 0:01:08.6]} 27... h6
{[%clk 0:00:38.9]} 28. Nf3 {[%clk 0:01:08.6]} 28... Nb6 {[%clk 0:00:39.1]} 29.
Rb1 {[%clk 0:00:59.5]} 29... Nd7 {[%clk 0:00:39.2]} 30. Ra1 {[%clk 0:00:59.4]}
30... Nb6 {[%clk 0:00:37.7]} 31. Ra7 {[%clk 0:00:26.7]} 31... Nc4 {[%clk
0:00:35.6]} 32. Kg3 {[%clk 0:00:17.7]} 32... Rbb2 {[%clk 0:00:33.5]} 33. Ne1
{[%clk 0:00:12.1]} 33... Nxe3 {[%clk 0:00:26.9]} 34. fxe3 {[%clk 0:00:11.9]}
34... Rc3 {[%clk 0:00:22.1]} 35. Ra8+ {[%clk 0:00:05.5]} 35... Kh7 {[%clk
0:00:22]} 36. Ra7 {[%clk 0:00:05.6]} 36... Rxe3+ {[%clk 0:00:20.8]} 37. Nf3
{[%clk 0:00:06.3]} 37... Kg8 {[%clk 0:00:14.3]} 38. h5 {[%clk 0:00:06.8]} 38...
Rb8 {[%clk 0:00:11.6]} 39. Rc7 {[%clk 0:00:05.7]} 39... Reb3 {[%clk 0:00:11.6]}
40. Kg4 {[%clk 0:00:05.5]} 40... R3b7 {[%clk 0:00:12.1]} 41. Rc6 {[%clk
0:00:05.7]} 41... Rb6 {[%clk 0:00:11.9]} 42. Rc7 {[%clk 0:00:06.3]} 42... Rb4
{[%clk 0:00:12.2]} 43. Ra7 {[%clk 0:00:05.5]} 43... Rc4 {[%clk 0:00:12]} 44. Kg3
{[%clk 0:00:05.8]} 44... Rbc8 {[%clk 0:00:10]} 45. Rb7 {[%clk 0:00:05.9]} 45...
R4c7 {[%clk 0:00:09.8]} 46. Rb6 {[%clk 0:00:06.2]} 46... Kh7 {[%clk 0:00:10.2]}
47. Ra6 {[%clk 0:00:06.4]} 47... Rc6 {[%clk 0:00:10.5]} 48. Ra7 {[%clk
0:00:06.6]} 48... R8c7 {[%clk 0:00:10.8]} 49. Ra8 {[%clk 0:00:07.1]} 49... g5
{[%clk 0:00:10.8]} 50. hxg6+ {[%clk 0:00:06.9]} 50... fxg6 {[%clk 0:00:11.2]}
51. Re8 {[%clk 0:00:07.7]} 51... g5 {[%clk 0:00:08.5]} 52. Nxe6 {[%clk
0:00:07.9]} 52... Ra7 {[%clk 0:00:05.3]} 53. Kg4 {[%clk 0:00:03.8]} 53... Kg6
{[%clk 0:00:03.5]} 54. Rg8+ {[%clk 0:00:04.1]} 54... Kh7 {[%clk 0:00:02.3]} 55.
Rf8 {[%clk 0:00:04.3]} 55... Rxe6 {[%clk 0:00:01.4]} 56. Kh5 {[%clk 0:00:03.9]}
1-0

[Event "Late-Titled-Tuesday-Blitz-April-23-2024"]
[Site "Chess.com"]
[Date "2024.04.23"]
[Round "5"]
[White "osielchesslover2011"]
[Black "MeisterJabo"]
[Result "1/2-1/2"]
[WhiteElo "2234"]
[BlackElo "2485"]
[TimeControl "180+1"]
[EndTime "14:57:38 PDT"]
[Termination "Game drawn by stalemate"]

1. e4 {[%clk 0:03:00]} 1... e5 {[%clk 0:02:59.5]} 2. Nf3 {[%clk 0:03:00.7]} 2...
Nf6 {[%clk 0:02:59.6]} 3. Nxe5 {[%clk 0:02:56.1]} 3... d6 {[%clk 0:02:59.3]} 4.
Nf3 {[%clk 0:02:56.6]} 4... Nxe4 {[%clk 0:02:59.2]} 5. Nc3 {[%clk 0:02:56.3]}
5... Nxc3 {[%clk 0:02:58.9]} 6. dxc3 {[%clk 0:02:57.2]} 6... Be7 {[%clk
0:02:59.7]} 7. Be3 {[%clk 0:02:54.8]} 7... Nd7 {[%clk 0:02:59.3]} 8. Qd2 {[%clk
0:02:54.4]} 8... Nf6 {[%clk 0:02:59.2]} 9. O-O-O {[%clk 0:02:53.4]} 9... O-O
{[%clk 0:02:58.9]} 10. Bd3 {[%clk 0:02:53.3]} 10... c5 {[%clk 0:02:57.3]} 11. h4
{[%clk 0:02:52.4]} 11... b5 {[%clk 0:02:49.9]} 12. Bxb5 {[%clk 0:02:24]} 12...
Rb8 {[%clk 0:02:04.6]} 13. Bc4 {[%clk 0:02:17.8]} 13... Qa5 {[%clk 0:01:50.5]}
14. Rhe1 {[%clk 0:01:55.5]} 14... Be6 {[%clk 0:01:37.7]} 15. Bxe6 {[%clk
0:01:45.7]} 15... fxe6 {[%clk 0:01:36.8]} 16. a3 {[%clk 0:01:45.6]} 16... Nd5
{[%clk 0:01:25.9]} 17. c4 {[%clk 0:01:33]} 17... Qb6 {[%clk 0:01:17.9]} 18. b3
{[%clk 0:01:23.3]} 18... Qa6 {[%clk 0:00:58.9]} 19. cxd5 {[%clk 0:00:36.6]}
19... Qxa3+ {[%clk 0:00:58.1]} 20. Kb1 {[%clk 0:00:36.5]} 20... Bf6 {[%clk
0:00:59]} 21. Nd4 {[%clk 0:00:29.2]} 21... cxd4 {[%clk 0:00:57]} 22. Bxd4 {[%clk
0:00:30.1]} 22... e5 {[%clk 0:00:15]} 23. Bb2 {[%clk 0:00:30.1]} 23... Qc5
{[%clk 0:00:15.4]} 24. h5 {[%clk 0:00:20.6]} 24... Rfc8 {[%clk 0:00:15.1]} 25.
g4 {[%clk 0:00:19.4]} 25... a5 {[%clk 0:00:15.1]} 26. Rg1 {[%clk 0:00:12.5]}
26... a4 {[%clk 0:00:15]} 27. g5 {[%clk 0:00:11.9]} 27... axb3 {[%clk
0:00:14.2]} 28. cxb3 {[%clk 0:00:11.7]} 28... Bd8 {[%clk 0:00:12.4]} 29. h6
{[%clk 0:00:08.2]} 29... g6 {[%clk 0:00:12.1]} 30. f4 {[%clk 0:00:07.9]} 30...
Rxb3 {[%clk 0:00:10.9]} 31. Rc1 {[%clk 0:00:08]} 31... Qb6 {[%clk 0:00:05.5]}
32. Rxc8 {[%clk 0:00:07.9]} 32... Qxg1+ {[%clk 0:00:05.7]} 33. Qc1 {[%clk
0:00:08.5]} 33... Qxc1+ {[%clk 0:00:05.3]} 34. Kxc1 {[%clk 0:00:09]} 34... exf4
{[%clk 0:00:02.3]} 35. Rxd8+ {[%clk 0:00:08.9]} 35... Kf7 {[%clk 0:00:03.2]} 36.
Rxd6 {[%clk 0:00:05.6]} 36... Rg3 {[%clk 0:00:02.5]} 37. Rf6+ {[%clk 0:00:05.9]}
37... Ke7 {[%clk 0:00:03]} 38. Rxf4 {[%clk 0:00:06.5]} 38... Kd6 {[%clk
0:00:03.2]} 39. Rd4 {[%clk 0:00:05.7]} 39... Rxg5 {[%clk 0:00:03.1]} 40. Rd2
{[%clk 0:00:05]} 40... Rxd5 {[%clk 0:00:02.3]} 41. Ba3+ {[%clk 0:00:04.8]} 41...
Ke6 {[%clk 0:00:02.5]} 42. Rxd5 {[%clk 0:00:04.8]} 42... Kxd5 {[%clk 0:00:03.4]}
43. Kd2 {[%clk 0:00:05.5]} 43... Ke5 {[%clk 0:00:04]} 44. Ke3 {[%clk 0:00:05.8]}
44... Kf5 {[%clk 0:00:04.6]} 45. Kf3 {[%clk 0:00:06]} 45... Kg5 {[%clk
0:00:03.7]} 46. Bf8 {[%clk 0:00:06]} 46... Kf6 {[%clk 0:00:04.3]} 47. Kg4 {[%clk
0:00:06.2]} 47... Kf7 {[%clk 0:00:05.2]} 48. Bg7 {[%clk 0:00:06.4]} 48... Kg8
{[%clk 0:00:06.1]} 49. Kg5 {[%clk 0:00:05.7]} 49... Kf7 {[%clk 0:00:07]} 50. Ba1
{[%clk 0:00:04.7]} 50... Kg8 {[%clk 0:00:07.9]} 51. Kf6 {[%clk 0:00:04.5]} 51...
Kf8 {[%clk 0:00:05.5]} 52. Ke6 {[%clk 0:00:04.1]} 52... Kg8 {[%clk 0:00:06.4]}
53. Ke7 {[%clk 0:00:03.9]} 53... g5 {[%clk 0:00:06]} 54. Bf6 {[%clk 0:00:01.3]}
54... g4 {[%clk 0:00:06.9]} 55. Bh4 {[%clk 0:00:02]} 55... g3 {[%clk 0:00:06.1]}
56. Bxg3 {[%clk 0:00:02]} 56... Kh8 {[%clk 0:00:06.7]} 57. Be5+ {[%clk
0:00:01.6]} 57... Kg8 {[%clk 0:00:07.6]} 58. Bd4 {[%clk 0:00:01.5]} 1/2-1/2

[Event "Late-Titled-Tuesday-Blitz-April-23-2024"]
[Site "Chess.com"]
[Date "2024.04.23"]
[Round "5"]
[White "MatthewG-p4p"]
[Black "Polish_fighter3000"]
[Result "0-1"]
[WhiteElo "2914"]
[BlackElo "3119"]
[TimeControl "180+1"]
[EndTime "14:57:45 PDT"]
[Termination "Polish_fighter3000 won by checkmate"]

1. e4 {[%clk 0:03:00.9]} 1... d5 {[%clk 0:02:59.7]} 2. exd5 {[%clk 0:03:00.7]}
2... Qxd5 {[%clk 0:03:00.6]} 3. Nc3 {[%clk 0:03:00.2]} 3... Qa5 {[%clk
0:03:00.4]} 4. d4 {[%clk 0:03:00.5]} 4... Bf5 {[%clk 0:02:54.6]} 5. Nf3 {[%clk
0:02:59.2]} 5... e6 {[%clk 0:02:49.2]} 6. Ne5 {[%clk 0:02:52.3]} 6... c6 {[%clk
0:02:22.6]} 7. g4 {[%clk 0:02:46.4]} 7... Bg6 {[%clk 0:02:10.6]} 8. h4 {[%clk
0:02:46.6]} 8... Nf6 {[%clk 0:01:50.4]} 9. h5 {[%clk 0:02:38.7]} 9... Be4 {[%clk
0:01:49.8]} 10. Nc4 {[%clk 0:02:38.6]} 10... Qd8 {[%clk 0:01:46.4]} 11. Nxe4
{[%clk 0:02:38.4]} 11... Nxe4 {[%clk 0:01:47.3]} 12. c3 {[%clk 0:02:17.3]} 12...
Nd7 {[%clk 0:01:42]} 13. Qf3 {[%clk 0:02:08.8]} 13... Nd6 {[%clk 0:01:04.9]} 14.
Bf4 {[%clk 0:01:57.6]} 14... Nxc4 {[%clk 0:01:02.2]} 15. Bxc4 {[%clk 0:01:58.5]}
15... Nb6 {[%clk 0:01:01]} 16. Bb3 {[%clk 0:01:56.6]} 16... Bd6 {[%clk
0:01:01.1]} 17. Bd2 {[%clk 0:01:54.9]} 17... a5 {[%clk 0:00:54.2]} 18. a4 {[%clk
0:01:53.2]} 18... Nd5 {[%clk 0:00:52.3]} 19. g5 {[%clk 0:01:48]} 19... Qc7
{[%clk 0:00:43]} 20. O-O-O {[%clk 0:01:25.3]} 20... O-O-O {[%clk 0:00:42.3]} 21.
Kb1 {[%clk 0:01:16.4]} 21... Qe7 {[%clk 0:00:19.7]} 22. Qe4 {[%clk 0:01:14.7]}
22... g6 {[%clk 0:00:17.1]} 23. c4 {[%clk 0:00:51.3]} 23... Nb4 {[%clk
0:00:16.7]} 24. f4 {[%clk 0:00:52]} 24... Bc7 {[%clk 0:00:07.6]} 25. Bc3 {[%clk
0:00:47.6]} 25... Rhe8 {[%clk 0:00:04.7]} 26. hxg6 {[%clk 0:00:46.9]} 26... hxg6
{[%clk 0:00:05.6]} 27. Rh7 {[%clk 0:00:44.1]} 27... Rd7 {[%clk 0:00:06.1]} 28.
Qf3 {[%clk 0:00:28.7]} 28... Kb8 {[%clk 0:00:03.4]} 29. Re1 {[%clk 0:00:24.6]}
29... Qd8 {[%clk 0:00:03]} 30. d5 {[%clk 0:00:21.5]} 30... cxd5 {[%clk
0:00:02.4]} 31. Bf6 {[%clk 0:00:11.1]} 31... Qc8 {[%clk 0:00:02]} 32. cxd5
{[%clk 0:00:11.5]} 32... Nxd5 {[%clk 0:00:01.7]} 33. Bxd5 {[%clk 0:00:07.2]}
33... Rxd5 {[%clk 0:00:02.6]} 34. Rxf7 {[%clk 0:00:07.1]} 34... Rc5 {[%clk
0:00:02.2]} 35. Be5 {[%clk 0:00:06.4]} 35... Bxe5 {[%clk 0:00:01.9]} 36. fxe5
{[%clk 0:00:06.8]} 36... Rd8 {[%clk 0:00:02.3]} 37. Qb3 {[%clk 0:00:06.3]} 37...
Rd4 {[%clk 0:00:02.1]} 38. Qb6 {[%clk 0:00:05.1]} 38... Rb4 {[%clk 0:00:02.6]}
39. Qd6+ {[%clk 0:00:05.4]} 39... Ka7 {[%clk 0:00:03.2]} 40. Rf2 {[%clk
0:00:04.1]} 40... Rd5 {[%clk 0:00:03.3]} 41. Qe7 {[%clk 0:00:03.9]} 41... Rxa4
{[%clk 0:00:02.6]} 42. Rc2 {[%clk 0:00:04.3]} 42... Qd7 {[%clk 0:00:02.5]} 43.
Qf6 {[%clk 0:00:04.1]} 43... Qb5 {[%clk 0:00:02.1]} 44. Qxg6 {[%clk 0:00:04.4]}
44... Qb3 {[%clk 0:00:02.4]} 45. Rc3 {[%clk 0:00:02.5]} 45... Qa2+ {[%clk
0:00:02.7]} 46. Kc2 {[%clk 0:00:03.3]} 46... Rb4 {[%clk 0:00:03]} 47. Rb1 {[%clk
0:00:03]} 47... Rdb5 {[%clk 0:00:03.6]} 48. Qd3 {[%clk 0:00:02.1]} 48... Rxb2+
{[%clk 0:00:03.6]} 49. Rxb2 {[%clk 0:00:02.3]} 49... Rxb2+ {[%clk 0:00:04.5]}
50. Kd1 {[%clk 0:00:03.2]} 50... Qa4+ {[%clk 0:00:03.1]} 51. Ke1 {[%clk
0:00:01.9]} 51... Qa1+ {[%clk 0:00:03.2]} 52. Qd1 {[%clk 0:00:02.7]} 52... Rb1
{[%clk 0:00:03.6]} 53. Rd3 {[%clk 0:00:03.4]} 53... Rxd1+ {[%clk 0:00:03.6]} 54.
Rxd1 {[%clk 0:00:04.3]} 54... Qxe5+ {[%clk 0:00:03.9]} 55. Kf2 {[%clk
0:00:05.2]} 55... Qxg5 {[%clk 0:00:04.6]} 56. Rd3 {[%clk 0:00:06.1]} 56... Qf5+
{[%clk 0:00:04.9]} 57. Rf3 {[%clk 0:00:07]} 57... Qxf3+ {[%clk 0:00:05.5]} 58.
Kg1 {[%clk 0:00:06.7]} 58... b5 {[%clk 0:00:06.4]} 59. Kh2 {[%clk 0:00:07.5]}
59... Kb6 {[%clk 0:00:07]} 60. Kg1 {[%clk 0:00:08.3]} 60... a4 {[%clk
0:00:07.6]} 61. Kh2 {[%clk 0:00:09.2]} 61... Qg4 {[%clk 0:00:07.8]} 62. Kh1
{[%clk 0:00:09.3]} 62... a3 {[%clk 0:00:08.3]} 63. Kh2 {[%clk 0:00:10.2]} 63...
a2 {[%clk 0:00:08.9]} 64. Kh1 {[%clk 0:00:11.1]} 64... b4 {[%clk 0:00:09.3]} 65.
Kh2 {[%clk 0:00:12]} 65... b3 {[%clk 0:00:10]} 66. Kh1 {[%clk 0:00:12.6]} 66...
b2 {[%clk 0:00:10.9]} 67. Kh2 {[%clk 0:00:13.5]} 67... e5 {[%clk 0:00:11.5]} 68.
Kh1 {[%clk 0:00:14.4]} 68... e4 {[%clk 0:00:12.1]} 69. Kh2 {[%clk 0:00:15.3]}
69... e3 {[%clk 0:00:12.6]} 70. Kh1 {[%clk 0:00:16.2]} 70... e2 {[%clk
0:00:13.4]} 71. Kh2 {[%clk 0:00:17.1]} 71... Kc5 {[%clk 0:00:14]} 72. Kh1 {[%clk
0:00:18]} 72... Kd4 {[%clk 0:00:14.7]} 73. Kh2 {[%clk 0:00:18.9]} 73... Ke3
{[%clk 0:00:15.2]} 74. Kh1 {[%clk 0:00:19.8]} 74... Kf2 {[%clk 0:00:15.6]} 75.
Kh2 {[%clk 0:00:20.7]} 75... Qh4# {[%clk 0:00:14.9]} 0-1